[Event "TUR-ch U13-18 Open 2023"]
[Site "Antalya"]
[Date "2023.01.23"]
[Round "3"]
[White "Durucay, Uygar"]
[Black "Koyuncu, Omer Arda"]
[Result "1-0"]
[ECO "A48"]
[WhiteElo "1926"]
[BlackElo "1627"]
[Annotator "TA"]
[PlyCount "111"]
[EventDate "2023.01.17"]
[EventType "swiss"]
[EventCountry "TUR"]
[SourceTitle "playchess.com"]
[Source "ChessBase"]
[SourceQuality "1"]
[TimeControl "5400+30"]

{[%evp 12,111,16,-4,37,23,35,19,16,0,8,0,0,0,0,-6,9,12,24,16,47,61,54,48,97,97,117,95,106,76,71,66,125,120,117,64,73,74,94,86,116,89,93,82,112,94,122,96,88,65,70,60,38,50,91,0,0,0,0,0,2,0,0,0,0,0,0,0,0,0,0,0,257,0,0,0,0,-29,-18,-128,-91,-87,-77,-73,0,0,33,31,38,40,1065,1064,1022,929,1352,1341,29979,29980,29980,29981,29982,29982]} 1. d4 {[%emt 0:01:00]} Nf6 {[%emt 0:01:00]} 2. Nf3 {[%emt 0:00:30]} g6 {[%emt 0:00:30]} 3. Bg5 {[%emt 0:00:00]} Bg7 {[%emt 0:01:30]} 4. Nbd2 {[%emt 0:00:00]} d6 {[%emt 0:04:30]} 5. c3 {[%emt 0:01:30]} O-O {[%emt 0:02:30]} 6. e4 {[%emt 0:01:30]} Nbd7 {[%emt 0:04:30]} 7. Bd3 {[%emt 0:00:30]} c6 {[%emt 0:02:30] A48: 1 d4 Nf6 2 Nf3 g6: Torre, London and Colle Systems.} (7... h6 $5 {[%cal Rh6g5]} 8. Be3 e5 $11) 8. O-O {[%emt 0:00:00]} Qc7 {[%emt 0:04:30]} 9. Qc2 {[%emt 0:03:00]} e5 {[%emt 0:05:30] The position is equal.} 10. dxe5 {[%emt 0:02:30]} dxe5 {[%emt 0:00:30] [#]} 11. b4 $146 {[%emt 0:00:00]} ({Predecessor:} 11. Rfe1 Nc5 12. Nc4 Nh5 13. Ne3 h6 14. Bh4 Nxd3 15. Qxd3 Be6 16. Qc2 f5 17. exf5 gxf5 {0-1 Alderete,J (1568)-Arbona Avila,Z Olympiad Women-39 2010 (9.44)}) 11... h6 {[%emt 0:22:30]} 12. Bh4 {[%emt 0:00:00]} Nh5 {[%emt 0:03:30]} 13. Rfe1 {[%emt 0:01:30]} Nf4 {[%emt 0:14:30]} 14. Bf1 {[%emt 0:02:30]} g5 {[%emt 0:00:30]} 15. Bg3 {[%emt 0:00:30]} Ng6 {[%emt 0:02:30]} 16. Nc4 {[%emt 0:02:30]} Nb6 {[%emt 0:07:30]} 17. Ne3 {[%emt 0:00:30]} f6 {[%emt 0:00:41]} (17... a5 $14) 18. a4 $16 {[%emt 0:02:30][%cal Ba2a4,Ba4a5][%mdl 32] White is more active.} Be6 {[%emt 0:07:03]} 19. a5 {[%emt 0:01:30]} Nc8 {[%emt 0:00:59]} 20. Bc4 {[%emt 0:00:30]} Bxc4 {[%emt 0:00:15]} 21. Nxc4 {[%emt 0:00:30]} Nd6 {[%emt 0:01:26]} (21... Rd8 $14) 22. Nxd6 {[%emt 0:00:30]} Qxd6 {[%emt 0:00:12]} 23. Nd2 {[%emt 0:00:30]} (23. Nd4 $16) 23... h5 {[%emt 0:11:47]} 24. f3 {[%emt 0:00:30]} h4 {[%emt 0:01:05]} 25. Bf2 {[%emt 0:00:30] Black must now prevent Bc5.} Rfd8 {[%emt 0:00:10]} 26. Nc4 {[%emt 0:00:30]} Qe6 {[%emt 0:00:30]} 27. Ne3 {[%emt 0:00:00]} Nf4 {[%emt 0:00:44]} 28. Rad1 {[%emt 0:00:00]} Bf8 {[%emt 0:00:23]} 29. g3 {[%emt 0:02:30]} Nh3+ {[%emt 0:00:33]} 30. Kg2 {[%emt 0:00:30]} Nxf2 {[%emt 0:00:30]} 31. Qxf2 {[%emt 0:00:00]} h3+ {[%emt 0:00:26]} 32. Kh1 {[%emt 0:00:00]} Qb3 {[%emt 0:00:39]} 33. Qc2 {[%emt 0:00:30]} (33. Rb1 $16 Qe6 34. Qf1) 33... Qxc2 $11 {[%emt 0:00:29]} 34. Nxc2 {[%emt 0:00:30]} c5 {[%emt 0:00:30][%cal Bc6c5,Bc5c4][%mdl 32]} 35. b5 {[%emt 0:00:30]} b6 {[%emt 0:00:33]} 36. a6 {[%emt 0:00:30] And now c4 would win.} c4 $1 {[%emt 0:00:49] ...Bc5 would be deadly.} 37. Ne3 {[%emt 0:00:30]} Rd3 {[%emt 0:00:39]} 38. Rxd3 {[%emt 0:00:30]} cxd3 {[%emt 0:00:00][%mdl 4096] Endgame KRB-KRN} 39. Rd1 {[%emt 0:02:30]} Bc5 {[%emt 0:00:29]} 40. Nd5 {[%emt 0:00:30]} Kf7 {[%emt 0:00:17]} 41. Rxd3 {[%emt 0:00:30] aiming for Nc7.} Rd8 $2 {[%emt 0:00:22][%mdl 8192]} (41... Rc8 $11 {and Black has nothing to worry.}) 42. Rd1 $2 {[%emt 0:02:30]} (42. Nb4 $18 Rxd3 43. Nxd3) 42... Rc8 {[%emt 0:00:38]} 43. Rf1 {[%emt 0:04:30]} Ke6 {[%emt 0:00:41]} 44. Rb1 {[%emt 0:02:30]} f5 {[%emt 0:00:35]} 45. Rf1 {[%emt 0:00:30]} (45. Rd1 $1 $11 {was the only way to keep the balance.}) 45... g4 {[%emt 0:00:28] Threatens to win with ...gxf3.} 46. c4 {[%emt 0:01:30]} fxe4 {[%emt 0:00:55]} 47. fxe4 {[%emt 0:00:30] [#]} (47. fxg4 $2 {is the wrong capture.} Bd4 48. Rf6+ Kd7 49. Rf7+ Kd6 50. Rf6+ (50. Rxa7 {is a self mate.} Rxc4) 50... Kc5 $19) 47... Be7 {[%emt 0:00:00] Repels Rf6+} ({Black should play} 47... Bd4 $1 $17 48. Rf6+ Kd7) 48. Ne3 {[%emt 0:01:30]} Bg5 {[%emt 0:00:54]} 49. Nxg4 {[%emt 0:00:30] Strongly threatening Rf5.} Rxc4 {[%emt 0:00:30]} 50. Nf2 {[%emt 0:00:00]} Rc1 $2 {[%emt 0:00:16][%mdl 8192] [#] Loses the game.} (50... Be7 $14) 51. Rxc1 $1 $18 {[%emt 0:00:00]} Bxc1 {[%emt 0:00:30]} 52. Nxh3 {[%emt 0:00:30]} Kd6 {[%emt 0:00:30]} 53. Nf2 {[%emt 0:00:00]} Kc5 {[%emt 0:00:00]} 54. Nd3+ {[%emt 0:00:00] White mates.} Kxb5 {[%emt 0:00:00]} 55. Nxc1 {[%emt 0:00:30]} Kxa6 {[%emt 0:00:30]} 56. h4 {[%emt 0:00:00] Weighted Error Value: White=0.19 (very precise) /Black=0.37} 1-0

[Event "TUR-ch U13-18 Open 2023"]
[Site "Antalya"]
[Date "2023.01.23"]
[Round "3"]
[White "Anacak, Hasan Gunes"]
[Black "Aksu, Ata Anil"]
[Result "1/2-1/2"]
[ECO "B47"]
[WhiteElo "1898"]
[BlackElo "1680"]
[Annotator "NA RC COMBH"]
[PlyCount "71"]
[EventDate "2023.01.17"]
[EventType "swiss"]
[EventCountry "TUR"]
[SourceTitle "playchess.com"]
[Source "ChessBase"]
[SourceQuality "1"]
[TimeControl "5400+30"]

1. e4 {[%emt 0:02:00]} c5 {[%emt 0:01:00]} 2. Nf3 {[%emt 0:00:30]} e6 {[%emt 0:00:00]} 3. d4 {[%emt 0:00:30]} cxd4 {[%emt 0:00:00]} 4. Nxd4 {[%emt 0:00:30]} Nc6 {[%emt 0:00:30]} 5. Nc3 {[%emt 0:00:30]} Qc7 {[%emt 0:00:30]} 6. f4 {[%emt 0:00:30]} a6 {[%emt 0:00:30]} 7. Nf3 {[%emt 0:00:30]} b5 {[%emt 0:00:30]} 8. Bd3 {[%emt 0:00:30]} Bc5 {[%emt 0:00:30]} 9. Qe2 {[%emt 0:29:30]} d6 {[%emt 0:12:30]} (9... Nd4 $11 10. Nxd4 Bxd4) 10. Be3 {[%emt 0:03:30]} Qa7 {[%emt 0:02:30]} 11. Bxc5 {[%emt 0:11:30]} Qxc5 {[%emt 0:01:30]} 12. Nd1 {[%emt 0:12:30]} (12. e5 $14 d5 13. Qf2 Qxf2+ 14. Kxf2) 12... Nf6 {[%emt 0:04:30]} 13. Nf2 {[%emt 0:06:30]} e5 {[%emt 0:03:30]} 14. f5 {[%emt 0:00:30]} Bb7 {[%emt 0:00:30]} 15. c3 {[%emt 0:04:30]} (15. O-O-O {was preferrable.}) 15... O-O {[%emt 0:13:00]} 16. Nd2 {[%emt 0:02:30]} d5 {[%emt 0:11:30]} 17. O-O {[%emt 0:00:30]} Rfd8 {[%emt 0:02:30]} 18. Kh1 {[%emt 0:00:30]} b4 {[%emt 0:04:30]} (18... d4 $142) 19. exd5 {[%emt 0:02:55]} Nxd5 {[%emt 0:01:30]} 20. Nfe4 {[%emt 0:00:30]} Qf8 {[%emt 0:00:30]} 21. Bc4 {[%emt 0:00:30]} bxc3 {[%emt 0:00:30]} 22. bxc3 {[%emt 0:00:30]} Na5 {[%emt 0:00:30]} 23. Bxd5 {[%emt 0:00:30]} Rxd5 {[%emt 0:09:30]} 24. Qg4 {[%emt 0:13:12]} (24. f6 $11) 24... f6 $1 {[%emt 0:02:30]} 25. Rab1 {[%emt 0:00:31]} Rad8 {[%emt 0:01:30]} 26. Nf3 {[%emt 0:02:44]} Rb5 {[%emt 0:07:30]} 27. Rbd1 {[%emt 0:00:55]} Bd5 {[%emt 0:00:30]} 28. a4 {[%emt 0:00:59]} Rb2 {[%emt 0:00:59]} 29. Ng3 {[%emt 0:01:55]} Rc2 {[%emt 0:04:27]} 30. Rxd5 {[%emt 0:00:30]} Rxd5 {[%emt 0:00:30]} 31. Qe4 {[%emt 0:00:30]} Rdd2 {[%emt 0:00:30]} 32. Nxd2 {[%emt 0:00:30]} Rxd2 {[%emt 0:00:30]} 33. Nh5 {[%emt 0:00:30]} h6 {[%emt 0:00:30]} 34. h3 {[%emt 0:01:24]} Kh7 35. Rb1 {[%emt 0:00:33]} Qf7 {[%emt 0:05:07]} 36. Qg4 $11 {[%emt 0:01:12]} 1/2-1/2

[Event "TUR-ch U13-18 Open 2023"]
[Site "Antalya"]
[Date "2023.01.23"]
[Round "3"]
[White "Karademir, Bugra"]
[Black "Acar, Erdogan"]
[Result "0-1"]
[ECO "B23"]
[WhiteElo "1889"]
[BlackElo "1631"]
[Annotator "NA RC COMBH"]
[PlyCount "51"]
[EventDate "2023.01.17"]
[EventType "swiss"]
[EventCountry "TUR"]
[SourceTitle "playchess.com"]
[Source "ChessBase"]
[SourceQuality "1"]
[TimeControl "5400+30"]

1. e4 {[%emt 0:01:00]} c5 {[%emt 0:02:00]} 2. Nc3 {[%emt 0:00:00]} e6 {[%emt 0:01:30]} 3. Nge2 {[%emt 0:02:00]} Nc6 {[%emt 0:00:30]} 4. g3 {[%emt 0:01:30]} d5 {[%emt 0:10:30]} 5. exd5 {[%emt 0:02:30]} exd5 {[%emt 0:03:30]} 6. d4 {[%emt 0:09:30]} Bg4 {[%emt 0:00:30]} 7. Bg2 $1 {[%emt 0:00:30]} Nxd4 {[%emt 0:00:30]} 8. Qd3 {[%emt 0:00:30]} Qe7 {[%emt 0:00:30]} 9. Bxd5 {[%emt 0:00:30]} O-O-O {[%emt 0:00:30]} 10. f3 {[%emt 0:00:30]} Bf5 {[%emt 0:00:30]} 11. Be4 {[%emt 0:00:30]} Bxe4 {[%emt 0:00:30]} 12. Nxe4 {[%emt 0:00:30]} f5 {[%emt 0:00:30]} 13. N4c3 {[%emt 0:00:30]} Qe6 {[%emt 0:00:30]} 14. Nb5 {[%emt 1:06:24]} (14. O-O $5 {[%cal Re2d4]}) 14... Nxb5 {[%emt 1:11:53]} 15. Qxb5 {[%emt 0:00:01]} a6 $11 {[%emt 0:00:32]} 16. Qb3 {[%emt 0:08:04]} Qc6 {[%emt 0:00:50]} 17. O-O {[%emt 0:01:55]} Nf6 {[%emt 0:00:30]} 18. Bg5 {[%emt 0:00:30]} Re8 {[%emt 0:00:30]} 19. Rae1 {[%emt 0:00:30]} c4 {[%emt 0:00:30]} 20. Qc3 {[%emt 0:00:30]} Nd5 {[%emt 0:00:30]} 21. Qd2 {[%emt 0:00:30]} Bc5+ {[%emt 0:00:30]} 22. Kh1 {[%emt 0:00:30]} h6 {[%emt 0:02:35]} 23. Bf4 {[%emt 0:02:19]} g5 {[%emt 0:00:16]} 24. Bxg5 {[%emt 0:00:33]} hxg5 {[%emt 0:00:30]} 25. Qxg5 {[%emt 0:00:08]} Ne3 {[%emt 0:00:59]} 26. Rf2 {[%emt 0:00:29]} 0-1

[Event "TUR-ch U13-18 Open 2023"]
[Site "Antalya"]
[Date "2023.01.23"]
[Round "3"]
[White "Ermemis, Kadir Efe"]
[Black "Ozen, Metehan"]
[Result "0-1"]
[ECO "C68"]
[WhiteElo "1808"]
[BlackElo "2137"]
[Annotator "TA"]
[PlyCount "113"]
[EventDate "2023.01.17"]
[EventType "swiss"]
[EventCountry "TUR"]
[SourceTitle "playchess.com"]
[Source "ChessBase"]
[SourceQuality "1"]
[TimeControl "5400+30"]

{[%evp 20,113,20,9,27,23,26,25,49,35,45,35,40,14,44,20,134,132,131,125,151,143,154,-8,-1,-6,-1,-6,0,0,46,39,36,30,28,0,0,0,0,0,0,-16,-8,-13,-10,-10,-14,-143,-141,-136,-139,-179,-164,-169,-171,-183,-132,-200,-146,-131,-16,-17,0,-141,-137,-162,-137,-189,-187,-237,-243,-225,-235,-256,-251,-294,-186,-341,-326,-331,-358,-360,-349,-391,-396,-385,-360,-420,-409,-409,-401,-460,-441,-759,-742,-361]} 1. e4 {[%emt 0:01:00]} e5 {[%emt 0:01:00]} 2. Nf3 {[%emt 0:00:30]} Nc6 {[%emt 0:00:30]} 3. Bb5 {[%emt 0:00:00]} a6 {[%emt 0:00:00]} 4. Bxc6 {[%emt 0:00:00]} dxc6 {[%emt 0:00:00]} 5. O-O {[%emt 0:00:30]} Bd6 {[%emt 0:00:30]} 6. d4 {[%emt 0:00:30]} exd4 {[%emt 0:00:30]} 7. Qxd4 {[%emt 0:00:30]} f6 {[%emt 0:00:30]} 8. Re1 {[%emt 0:01:30]} Ne7 {[%emt 0:12:30]} 9. Be3 {[%emt 0:10:30]} O-O {[%emt 0:01:30]} 10. Nbd2 {[%emt 0:01:30]} Be6 {[%emt 0:02:30]} 11. Rad1 {[%emt 0:03:30]} Qe8 {[%emt 0:30:30] C68: Ruy Lopez: Exchange Variation, sidelines.} 12. Nc4 {[%emt 0:10:30]} Bxc4 {[%emt 0:02:30]} (12... Bb4 {simplifies} 13. c3 Rd8 14. Qxd8 Qxd8 15. Rxd8 Rxd8 16. cxb4 Bxc4 17. b3 Be6) 13. Qxc4+ {[%emt 0:00:30] [#]} Kh8 $146 {[%emt 0:00:00] White has an edge.} ({Predecessor:} 13... Qf7 14. Qxf7+ Rxf7 15. Nd4 Re8 16. f3 c5 17. Ne6 b6 18. Bf4 Nc8 19. Bxd6 cxd6 {½-½ Masker,E-Pytel,M La Fere op 1st 2002 (7)}) 14. Nd4 {[%emt 0:07:30]} (14. Bc5 {simplifies} Bxc5 15. Qxc5 Ng6 16. Qc3) 14... Qh5 {[%emt 0:02:00]} 15. g3 {[%emt 0:00:30]} Rfe8 {[%emt 0:05:30]} 16. Kg2 {[%emt 0:09:30]} (16. f4 $5) 16... c5 {[%emt 0:06:30]} 17. Nf3 {[%emt 0:05:30]} Nc6 {[%emt 0:03:30] [#]} (17... b6 $11 {keeps the balance.}) 18. Rd5 $1 $16 {[%emt 0:05:30]} Qf7 {[%emt 0:17:16]} 19. Bxc5 {[%emt 0:07:30]} b5 {[%emt 0:04:50]} 20. Qb3 {[%emt 0:04:30]} Ne7 {[%emt 0:00:52]} 21. Rxd6 {[%emt 0:02:30]} ({White must play} 21. Bxd6 $16 Nxd5 22. Bc5) 21... Qxb3 $11 {[%emt 0:00:14]} 22. axb3 {[%emt 0:00:30]} cxd6 {[%emt 0:00:30]} 23. Bxd6 {[%emt 0:00:00]} Rac8 {[%emt 0:01:31]} 24. c3 {[%emt 0:01:00]} Ng6 {[%emt 0:00:54]} (24... Nc6 $11) 25. Nd4 $14 {[%emt 0:01:30]} Red8 {[%emt 0:00:30]} 26. Bb4 {[%emt 0:00:30]} Ne5 {[%emt 0:01:00] [#] Strongly threatening ...Nd3.} 27. Re2 {[%emt 0:03:30]} (27. Ra1 $5 {[%cal Ra1a6]}) 27... Nd3 {[%emt 0:01:54] ...Nxb4 would be deadly.} 28. Ba5 {[%emt 0:01:30]} Rd7 {[%emt 0:00:08]} 29. Rd2 {[%emt 0:00:30]} Nc5 {[%emt 0:00:21]} 30. Re2 {[%emt 0:02:47]} Nb7 {[%emt 0:00:20]} 31. Bb6 {[%emt 0:01:18]} Rd6 $36 {[%emt 0:00:20][%mdl 2048] White is under pressure.} 32. Ba7 {[%emt 0:00:26]} Ra8 {[%emt 0:00:31]} 33. Nf5 {[%emt 0:00:30]} (33. e5 $1 $11 {was the only way to keep the balance.} fxe5 34. Rxe5) 33... Rxa7 $17 {[%emt 0:00:00]} 34. Nxd6 {[%emt 0:00:00]} Nxd6 {[%emt 0:00:00][%mdl 4096] Endgame KRN-KR} 35. Kf3 {[%emt 0:00:04]} Kg8 {[%emt 0:00:17]} 36. Ke3 {[%emt 0:00:30]} Kf7 {[%emt 0:00:30]} 37. Kd4 {[%emt 0:00:30]} Ke6 {[%emt 0:00:30]} (37... Re7 $19 38. Kd3 Rd7) 38. Kc5 {[%emt 0:00:30]} (38. e5 $17 Nb7 39. b4) 38... Nc8 {[%emt 0:00:30]} 39. Kc6 {[%emt 0:00:30][%cal Oe4e5]} Ne7+ {[%emt 0:00:30]} (39... Rd7 $17 {White must now prevent ...Ne7+.} 40. e5 Ne7+ 41. Kb6 fxe5 42. Kxa6 Rd5) 40. Kb6 $11 {[%emt 0:00:30]} Nc8+ {[%emt 0:00:30]} (40... Ra8 $11) 41. Kc6 $17 {[%emt 0:00:30][%cal Oe4e5]} Rd7 {[%emt 0:04:56] Wards off e5} 42. f4 {[%emt 0:01:41]} Ne7+ {[%emt 0:00:07]} 43. Kc5 {[%emt 0:00:54]} (43. Kb6 $17 {was called for.}) 43... Rd6 $19 {[%emt 0:01:24]} 44. c4 {[%emt 0:00:30]} (44. Rf2 $142) 44... Rc6+ {[%emt 0:00:30]} 45. Kb4 {[%emt 0:00:30]} Rc8 {[%emt 0:00:30]} 46. cxb5 {[%emt 0:00:30]} Rb8 {[%emt 0:00:30]} 47. Ka5 {[%emt 0:00:30]} axb5 {[%emt 0:00:30]} 48. Rc2 {[%emt 0:00:30] Repels Nc6+} (48. Rd2) 48... Kd6 {[%emt 0:00:30] aiming for ...Nc6+.} 49. Rd2+ {[%emt 0:00:30]} Kc7 {[%emt 0:00:30] ( -> ...Nc6+)} 50. Kb4 {[%emt 0:00:30]} Kb6 {[%emt 0:00:30]} 51. Rd7 {[%emt 0:00:30]} Nc6+ {[%emt 0:00:06]} 52. Kc3 {[%emt 0:01:45]} Rb7 {[%emt 0:00:30]} 53. Rd1 {[%emt 0:00:30]} Re7 {[%emt 0:00:30]} 54. Re1 {[%emt 0:00:30]} Kc5 {[%emt 0:00:00]} 55. g4 {[%emt 0:00:52]} g5 {[%emt 0:00:18][%cal Bg7g5,Bg5f4][%mdl 32]} 56. e5 {[%emt 0:00:30]} (56. fxg5 $142 fxg5 57. Rc1) 56... gxf4 {[%emt 0:01:36]} 57. exf6 {[%emt 0:00:30] What a bad dream for White.   Weighted Error Value: White=0.31/Black=0.18 (very precise)} 0-1

[Event "TUR-ch U13-18 Open 2023"]
[Site "Antalya"]
[Date "2023.01.23"]
[Round "3"]
[White "Uysal, Ugur"]
[Black "Oflaz, Avni"]
[Result "1-0"]
[ECO "D64"]
[WhiteElo "1760"]
[BlackElo "1471"]
[Annotator "NA RC COMBH"]
[PlyCount "95"]
[EventDate "2023.01.17"]
[EventType "swiss"]
[EventCountry "TUR"]
[SourceTitle "playchess.com"]
[Source "ChessBase"]
[SourceQuality "1"]
[TimeControl "5400+30"]

1. Nf3 {[%emt 0:01:00]} Nf6 {[%emt 0:01:00]} 2. d4 {[%emt 0:00:30]} e6 {[%emt 0:00:30]} 3. c4 {[%emt 0:00:30]} d5 {[%emt 0:00:30]} 4. Nc3 {[%emt 0:00:00]} Be7 {[%emt 0:00:00]} 5. Bg5 {[%emt 0:00:00]} O-O {[%emt 0:02:00]} 6. e3 {[%emt 0:00:00]} Nbd7 {[%emt 0:06:30]} 7. Rc1 {[%emt 0:00:00]} c6 {[%emt 0:06:30]} 8. Qc2 {[%emt 0:02:30]} Re8 {[%emt 0:03:30]} 9. Bd3 {[%emt 0:00:30]} dxc4 {[%emt 0:00:30]} 10. Bxc4 {[%emt 0:00:00]} Nd5 {[%emt 0:03:30]} 11. Bxe7 {[%emt 0:01:00]} Qxe7 {[%emt 0:00:30]} 12. O-O {[%emt 0:00:30]} Nxc3 {[%emt 0:03:30]} 13. Qxc3 {[%emt 0:02:30]} e5 {[%emt 0:06:30]} 14. dxe5 {[%emt 0:09:30]} Nxe5 {[%emt 0:00:30]} 15. Nxe5 {[%emt 0:00:30]} Qxe5 {[%emt 0:00:00]} 16. Qb3 {[%emt 0:00:00]} Qc7 {[%emt 0:09:00]} 17. Rfd1 {[%emt 0:02:00]} Be6 {[%emt 0:08:30]} 18. Bxe6 {[%emt 0:00:30]} Rxe6 {[%emt 0:00:30]} 19. Rd4 {[%emt 0:00:00]} Ree8 {[%emt 0:09:30]} 20. Rcd1 {[%emt 0:05:00]} Rad8 {[%emt 0:05:30]} 21. h3 {[%emt 0:01:30]} Rxd4 {[%emt 0:00:30]} 22. Rxd4 {[%emt 0:00:30]} g6 {[%emt 0:02:30]} 23. Qd1 {[%emt 0:01:30]} Re7 {[%emt 0:03:30]} 24. Qd2 {[%emt 0:05:30]} a6 {[%emt 0:06:30]} 25. Rd8+ {[%emt 0:03:30]} Kg7 {[%emt 0:00:30]} 26. Rd6 {[%emt 0:00:30]} c5 {[%emt 0:04:03]} 27. b4 {[%emt 0:06:30]} Re6 {[%emt 0:09:21]} 28. Qc3+ {[%emt 0:14:30]} Kg8 {[%emt 0:03:48]} 29. Rxe6 {[%emt 0:00:30]} fxe6 {[%emt 0:00:03]} 30. bxc5 {[%emt 0:01:30]} Qc6 {[%emt 0:01:28]} 31. Qd4 {[%emt 0:00:30]} Kf7 {[%emt 0:01:08]} 32. e4 {[%emt 0:00:30]} h6 {[%emt 0:02:20]} 33. e5 {[%emt 0:03:30]} Qd5 {[%emt 0:01:57]} 34. Qxd5 {[%emt 0:00:30]} exd5 {[%emt 0:00:30]} 35. f4 {[%emt 0:00:30]} Ke6 {[%emt 0:00:30]} 36. Kf2 {[%emt 0:00:30]} d4 {[%emt 0:00:00]} 37. g4 {[%emt 0:05:30]} g5 {[%emt 0:01:17]} 38. Kf3 {[%emt 0:07:30]} gxf4 {[%emt 0:00:14]} 39. Kxf4 {[%emt 0:00:00]} d3 {[%emt 0:00:30]} 40. Ke3 {[%emt 0:00:00]} Kxe5 {[%emt 0:00:30]} 41. Kxd3 {[%emt 0:00:30]} Kf4 {[%emt 0:00:01]} 42. Kd4 {[%emt 0:08:30]} Kg3 {[%emt 0:01:33]} 43. Ke5 {[%emt 0:00:30]} Kxh3 {[%emt 0:00:30]} 44. Kd6 {[%emt 0:00:00]} Kxg4 {[%emt 0:00:06]} 45. Kc7 {[%emt 0:00:00]} h5 {[%emt 0:00:45]} 46. Kxb7 {[%emt 0:00:30]} h4 {[%emt 0:00:30]} 47. c6 {[%emt 0:00:30]} h3 {[%emt 0:00:30]} 48. c7 1-0

[Event "TUR-ch U13-18 Open 2023"]
[Site "Antalya"]
[Date "2023.01.23"]
[Round "3"]
[White "Zerey, Demhat"]
[Black "Yamakoglu, Mustafa Ege"]
[Result "0-1"]
[ECO "B28"]
[WhiteElo "1756"]
[BlackElo "1372"]
[Annotator "NA RC COMBH"]
[PlyCount "75"]
[EventDate "2023.01.17"]
[EventType "swiss"]
[EventCountry "TUR"]
[SourceTitle "playchess.com"]
[Source "ChessBase"]
[SourceQuality "1"]
[TimeControl "5400+30"]

1. e4 {[%emt 0:02:00]} c5 {[%emt 0:02:00]} 2. Nf3 {[%emt 0:00:30]} a6 {[%emt 0:01:30]} 3. d4 {[%emt 0:01:30]} cxd4 {[%emt 0:01:30]} 4. Nxd4 {[%emt 0:01:30]} Nf6 {[%emt 0:00:30]} 5. Bd3 {[%emt 0:01:30]} e5 {[%emt 0:06:30]} 6. Nb3 {[%emt 0:02:30]} Qc7 {[%emt 0:02:30]} 7. Bg5 {[%emt 0:04:30]} d6 {[%emt 0:04:30]} 8. c4 {[%emt 0:02:30]} Be6 {[%emt 0:03:30]} 9. Qe2 {[%emt 0:03:30]} Nbd7 {[%emt 0:05:30]} 10. Nc3 {[%emt 0:04:30]} Be7 {[%emt 0:05:30]} 11. Rc1 {[%emt 0:02:30]} h6 {[%emt 0:06:30]} 12. Nd5 {[%emt 0:03:30]} Bxd5 {[%emt 0:06:30]} 13. cxd5 {[%emt 0:01:30]} Qd8 {[%emt 0:01:30]} 14. Be3 {[%emt 0:03:30]} g5 {[%emt 0:05:30]} 15. f3 {[%emt 0:03:30]} Nh5 {[%emt 0:03:30]} 16. g3 {[%emt 0:03:30]} Rc8 {[%emt 0:07:30]} 17. O-O {[%emt 0:02:30]} Rg8 {[%emt 0:05:30]} 18. Kh1 {[%emt 0:04:30]} Ndf6 {[%emt 0:04:30]} 19. Qd2 {[%emt 0:02:30]} Qd7 {[%emt 0:01:30]} 20. g4 {[%emt 0:04:30]} Nf4 {[%emt 0:03:30]} 21. Rxc8+ {[%emt 0:01:30]} Qxc8 {[%emt 0:00:30]} 22. Rc1 {[%emt 0:00:30]} Qd7 {[%emt 0:00:00]} 23. Rc3 {[%emt 0:09:30]} h5 {[%emt 0:02:00]} 24. Qc2 {[%emt 0:00:30]} Bd8 {[%emt 0:00:00]} 25. Bxf4 {[%emt 0:06:30]} gxf4 {[%emt 0:00:00]} 26. g5 {[%emt 0:00:30]} Rxg5 {[%emt 0:00:30]} 27. Qf2 {[%emt 0:00:30]} Qh3 {[%emt 0:02:22]} 28. Bf1 {[%emt 0:00:30]} Qd7 {[%emt 0:00:35]} 29. Rc2 {[%emt 0:02:30]} h4 {[%emt 0:01:29]} 30. Qxh4 {[%emt 0:02:30]} Nh5 {[%emt 0:00:30]} 31. Bh3 {[%emt 0:00:30]} Qb5 {[%emt 0:00:00]} 32. Qe1 {[%emt 0:00:30]} Qd3 {[%emt 0:01:19]} 33. Rc3 {[%emt 0:00:30]} Qb5 {[%emt 0:00:37]} 34. Bg4 {[%emt 0:00:30]} Nf6 {[%emt 0:00:30]} 35. h3 {[%emt 0:00:30]} Nh5 {[%emt 0:00:21]} 36. Bxh5 {[%emt 0:09:25]} Rxh5 {[%emt 0:00:06]} 37. Kh2 {[%emt 0:02:42]} Bh4 {[%emt 0:00:39]} 38. a4 {[%emt 0:00:22]} 0-1